Cogmind - Beta 16 @@@ ROGUE MODE // 2026.01.03 @ 22:31:52 Player: LYMPH NODE JONES Result: Destroyed by G-47 Trooper with Particle Gun Performance ------------- Evolutions (2) 1000 Regions Visited (5) 1000 Robots Destroyed (39) 195 Value Destroyed (1105) 1105 Prototype IDs (24) 480 Alien Tech Used (0) 0 Bonus (593) 593 TOTAL SCORE: 4373 Bonus ------- High Alert Combat Kills 44 Follower Combat Kills 249 Aligned with FarCom 300 Cogmind --------- Core Integrity 0/550 Matter 242/300 Energy 99/100 System Corruption 2% Temperature Cool (18) Movement Core (50) Location -8/Materials Parts ------- > --- POWER (1) -------- (None) > --- PROPULSION (2) --- (None) > --- UTILITY (4) ------ Improved Signal Interpreter Improved Targeting Computer Advanced Targeting Computer > --- WEAPON (4) ------- (None) > --- INVENTORY (5) ---- Light Nuclear Core Field Lobotomy Kit (4) Peak State ------------ > --- POWER ------------ Light Nuclear Core > --- PROPULSION ------- Aluminum Leg VSS Leg > --- UTILITY ---------- Improved Signal Interpreter Improved Targeting Computer Advanced Targeting Computer Advanced Targeting Computer > --- WEAPON ----------- Heavy EM Shotgun Heavy EM Shotgun Heavy EM Shotgun Field Lobotomy Kit > --- INVENTORY -------- Nuclear Core Light Nuclear Core EM Pulse Cannon Rocket Launcher [Rating: 41] Favorites ----------- Power Light Ion Engine Engine Light Ion Engine Power Core Light Nuclear Core Propulsion Aluminum Leg Leg Aluminum Leg Wheel Armored Huge Wheel Utility Advanced Targeting Computer Device Skeleton Box Storage Small Storage Unit Processor Advanced Targeting Computer Protection Hardened Medium Armor Plating Weapon Light Assault Rifle Energy Gun Heavy EM Shotgun Energy Cannon Ion Cannon Ballistic Gun Light Assault Rifle Launcher Proton Missile Launcher Special Weapon Field Lobotomy Kit Build | -11 -10 -10 -10 -9 -8 ------- Run | Yrd Mat Min Exi Min Mat Slots Evolved 4 | . . . . . 4 Power . | . . . . . . Propulsion . | . . . . . . Utility 2 | . . . . . 2 Weapon 2 | . . . . . 2 Parts Attached 44 | 7 2 . 3 1 31 Power 5 | 1 . . 1 . 3 Engine 3 | 1 . . 1 . 1 Core 2 | . . . . . 2 Reactor . | . . . . . . Propulsion 7 | 2 . . . . 5 Treads . | . . . . . . Leg 5 | 2 . . . . 3 Wheel 2 | . . . . . 2 Hover . | . . . . . . Flight . | . . . . . . Utility 10 | 1 . . 1 . 8 Device 2 | . . . 1 . 1 Storage 1 | 1 . . . . . Processor 6 | . . . . . 6 Hackware . | . . . . . . Protection 1 | . . . . . 1 Artifact . | . . . . . . Weapon 22 | 3 2 . 1 1 15 Energy Gun 8 | 2 . . . . 6 Energy Cannon 2 | . . . . . 2 Ballistic Gun 4 | 1 2 . . 1 . Ballistic Cannon . | . . . . . . Launcher 7 | . . . . . 7 Special Weapon 1 | . . . 1 . . Impact Weapon . | . . . . . . Slashing Weapon . | . . . . . . Piercing Weapon . | . . . . . . Special Melee Weapon . | . . . . . . Unidentified Prototypes 3 | . . . 2 . 1 Parts Lost 18 | . 1 . . . 17 Power 3 | . 1 . . . 2 Propulsion 2 | . . . . . 2 Utility 1 | . . . . . 1 Weapon 12 | . . . . . 12 Highest Loss Streak 14 | . 1 . . . 14 To Critical Strikes . | . . . . . . Average Backups 4 | 1 4 6 5 6 4 Power . | . 1 1 . . . Propulsion 1 | . 2 2 2 2 . Utility . | . . . . . . Weapon 2 | . 1 3 3 3 2 Tool/Special . | . . . . . . Unused Backups 5 | . . . . . 5 Power 1 | . . . . . 1 Propulsion 2 | . . . . . 2 Utility 1 | . . . . . 1 Weapon 1 | . . . . . 1 Tool/Special . | . . . . . . Average Slot Usage (%) 88 | . 79 71 89 100 88 Engine 6 | . 8 . 13 14 3 Core 3 | . . . . . 4 Leg 17 | . 28 28 28 28 11 Wheel 1 | . . . . . 2 Device 4 | . . . 4 14 3 Storage 7 | . 14 14 14 14 3 Processor 17 | . . . . . 27 Energy Gun 12 | . 9 . . . 18 Ballistic Gun 14 | . 18 28 27 28 7 Launcher 2 | . . . . . 3 Peak Build Rating 41 | 6 6 5 21 13 41 Average Rating 21 | 4 5 5 8 13 28 On Entrance 7 | . 6 5 5 13 13 Avg Prop Armor Cover (%) . | . . . . . . Naked Turns . | . . . . . . Heaviest Build 30 | 11 11 7 12 12 30 Greatest Support 28 | 20 20 20 20 20 28 Greatest Overweight (x) 7 | . . . . . 7 Average Overweight (x) . | . . . . . . Largest Inventory Capacity 8 | 8 8 8 8 8 8 Average Capacity 6 | 6 8 8 8 8 6 Most Carried 7 | 4 6 6 6 6 7 Average Carried 5 | 2 4 6 5 6 4 Final Capacity 8 | 8 8 8 8 8 5 Final Carried 6 | 4 6 6 6 6 2 Class Distribution -------------------- 43% | Mutant 32% | Gunner 17% | Skirmisher 6% | Scavenger-Gunner Dominant Class ---------------- Mutant | -10/Materials Mutant | -10/Mines Mutant | -10/Exiles Mutant | -9/Mines Gunner | -8/Materials Resources | -11 -10 -10 -10 -9 -8 ----------- Run | Yrd Mat Min Exi Min Mat Matter Collected 770 | 246 45 . . 87 392 Remotely . | . . . . . . Salvage Created 1536 | . 54 . . 192 1290 Parts 80 | . 5 . . 7 68 Haulers Intercepted . | . . . . . . Recyclers Shooed 3 | . . . . 1 2 Parts Field Recycled . | . . . . . . Retrieved Matter . | . . . . . . Parts Self-Destructed . | . . . . . . Prevented . | . . . . . . Parts Restored . | . . . . . . Kills | -11 -10 -10 -10 -9 -8 ------- Run | Yrd Mat Min Exi Min Mat Combat Hostiles Destroyed 28 | . 3 . . 3 22 Guns 22 | . 3 . . 3 16 AOE 4 | . . . . . 4 Classes Destroyed 9 | . 1 . . 2 6 Worker 2 | . . . . . 2 Builder 1 | . . . . . 1 Tunneler 1 | . . . . 1 . Recycler 4 | . . . . 2 2 Watcher 3 | . . . . . 3 Swarmer 10 | . 3 . . 3 4 Grunt 11 | . . . . . 11 Sentry 4 | . . . . . 4 Hunter 3 | . . . . . 3 Best Kill Streak 6 | . 3 . . 6 5 Combat Bots Only 4 | . 3 . . 3 4 Max Kills in Single Turn 3 | . 1 . . 1 3 Gunslinging 1 | . . . . . 1 Exploded 1 | . . . . . 1 Melee . | . . . . . . Uniques/NPCs Destroyed . | . . . . . . Combat | -11 -10 -10 -10 -9 -8 -------- Run | Yrd Mat Min Exi Min Mat Hostile Shots Fired 252 | . 46 . . 11 195 Missed 74 | . 21 . . 4 49 Hits 178 | . 25 . . 7 146 Projectile 178 | . 25 . . 7 146 AOE 2 | . . . . . 2 Critical Strikes 5 | . . . . . 5 Damage Taken 2764 | . 201 . . 60 2503 Core 574 | . 10 . . 10 554 Absorbed by Shields . | . . . . . . Regen/Repaired (Parts) 26 | . . . . . 26 Core Remaining (%) 96 | 100 . . . 92 . Volleys Fired 86 | . 9 . . 12 65 Largest 4 | . 2 . . 2 4 Hottest 200 | . 60 . . 40 200 Shots Fired 233 | . 18 . . 24 191 Gun 204 | . 18 . . 24 162 Cannon 14 | . . . . . 14 Launcher 14 | . . . . . 14 Special 1 | . . . . . 1 Kinetic 92 | . 9 . . 24 59 Thermal 41 | . . . . . 41 Explosive 4 | . . . . . 4 Electromagnetic 95 | . 9 . . . 86 Robot Hit Streak 33 | . 4 . . 4 33 Robot Miss Streak 5 | . 5 . . 3 3 Penetration Max . | . . . . . . Secondary Targets 6 | . 2 . . . 4 Max Gunslinging Chain 1 | . 1 . . . 1 Shots Hit Robots 142 | . 8 . . 13 121 Core Hits 82 | . 5 . . 9 68 Critical Kills 1 | . . . . 1 . Critical Parts Destroyed . | . . . . . . Critical Strikes 3 | . . . . 1 2 Burn 2 | . . . . . 2 Destroy 1 | . . . . 1 . Melee Attacks . | . . . . . . Impact . | . . . . . . Slashing . | . . . . . . Piercing . | . . . . . . Sneak Attacks . | . . . . . . Combat Hostiles . | . . . . . . Follow-up Attacks . | . . . . . . Damage Inflicted 2945 | . 104 . . 139 2702 Guns 1830 | . 104 . . 139 1587 Cannons 114 | . . . . . 114 Explosions 949 | . . . . . 949 Melee . | . . . . . . Ramming 52 | . . . . . 52 Kinetic 491 | . 29 . . 139 323 Thermal 688 | . . . . . 688 Explosive 244 | . . . . . 244 Electromagnetic 1470 | . 75 . . . 1395 Impact . | . . . . . . Slashing . | . . . . . . Piercing . | . . . . . . Highest Corruption 2 | . . . . . 2 Average Corruption 1 | . . . . . 1 Corruption Purged . | . . . . . . Corruption Blocked . | . . . . . . Effects 9 | . . . . . 9 Message Errors 4 | . . . . . 4 Matter Fused 3 | . . . . . 3 Heat Flow Errors 1 | . . . . . 1 Data Loss (minor) 1 | . . . . . 1 Overload Shots . | . . . . . . Overflow Damage 105 | . . . . . 105 Projectiles 16 | . . . . . 16 Explosions 89 | . . . . . 89 Melee . | . . . . . . Knockbacks 1 | . . . . . 1 Impact 1 | . . . . . 1 Kinetic . | . . . . . . Secondary . | . . . . . . Self-Inflicted Damage 269 | . . . . . 269 Shots 10 | . . . . . 10 Rammed 9 | . . . . . 9 Targets Rammed 9 | . . . . . 9 Kicked . | . . . . . . Crushed . | . . . . . . Highest Temperature 480 | . 40 . . . 480 Average Temperature 139 | . 21 . . . 147 Received Heat Transfer 900 | . . . . . 900 Effects 6 | . . . . . 6 Shutdowns 1 | . . . . . 1 Energy Bleed 3 | . . . . . 3 Interference 1 | . . . . . 1 Damage (minor) 1 | . . . . . 1 Siege Activations . | . . . . . . Martial Activations . | . . . . . . Shielding Activations . | . . . . . . Robots Disrupted . | . . . . . . Combat Hostiles . | . . . . . . Robots Corrupted 2 | . . . . . 2 Combat Hostiles 2 | . . . . . 2 Parts Fried 8 | . . . . . 8 Impact Corruptions . | . . . . . . Robots Melted . | . . . . . . Combat Hostiles . | . . . . . . Parts Melted 1 | . . . . . 1 Heat Transferred 1460 | . . . . . 1460 Parts Sabotaged . | . . . . . . Parts Stolen . | . . . . . . Parts Stripped . | . . . . . . Power Chain Reactions 3 | . . . . . 3 Alert | -11 -10 -10 -10 -9 -8 ------- Run | Yrd Mat Min Exi Min Mat Maximum Alert Level 2 | . . . . . 2 Low Security (%) 64 | 100 100 100 . 100 54 Level 1 28 | . . . . . 36 Level 2 6 | . . . . . 8 Level 3 . | . . . . . . Level 4 . | . . . . . . Level 5 . | . . . . . . High Security . | . . . . . . Max Security . | . . . . . . Peak Influence 555 | . 60 15 . 60 555 Initial 15 | . . 15 . . . Average 130 | . 23 4 . 27 162 Influence Increases 1205 | . 70 . . 85 1050 Destroy 0b10 Robot/C 700 | . 60 . . 60 580 Destroy 0b10 Robot/NC 55 | . . . . 15 40 Destroy Leader 186 | . 10 . . 10 166 Allied During Kill 18 | . . . . . 18 Successful Hack 12 | . . . . . 12 Disable Machine 45 | . . . . . 45 Destroy Structure 54 | . . . . . 54 Partial Spotted 15 | . . . . . 15 Lose Combat Pursuer 120 | . . . . . 120 Influence Decreases 742 | . 30 40 . 85 587 Entered New Map 25 | . . 25 . . . Time Decay 517 | . 20 15 . 85 397 Lost Part 180 | . 10 . . . 170 Lost Ally 20 | . . . . . 20 Squads Dispatched 8 | . . . . . 8 Investigation 4 | . . . . . 4 Extermination . | . . . . . . Reinforcement 4 | . . . . . 4 Assault . | . . . . . . Garrison . | . . . . . . Intercept . | . . . . . . Searches Triggered . | . . . . . . Construction Impeded 2 | . . . . . 2 Haulers Reinforced . | . . . . . . Active Scanning Responses . | . . . . . . Cargo Convoy Interrupts . | . . . . . . Stealth | -11 -10 -10 -10 -9 -8 --------- Run | Yrd Mat Min Exi Min Mat Distress Signals 7 | . . . . . 7 Communications Jammed . | . . . . . . Distress Signals . | . . . . . . Times Spotted 58 | . 6 . . 3 49 Peak Tracking Total 7 | . 3 . . 3 7 Tactical Retreats 6 | . . . . . 6 Traps | -11 -10 -10 -10 -9 -8 ------- Run | Yrd Mat Min Exi Min Mat Traps Triggered . | . . . . . . Indirectly . | . . . . . . Trap Hack Attempts . | . . . . . . Triggered . | . . . . . . Disarmed . | . . . . . . Reprogrammed . | . . . . . . Reused . | . . . . . . Traps Extracted . | . . . . . . Installed . | . . . . . . Triggered . | . . . . . . Machines | -11 -10 -10 -10 -9 -8 ---------- Run | Yrd Mat Min Exi Min Mat Machines Disabled 3 | . . . . . 3 Max in Single Turn 1 | . . . . . 1 Machines Repaired . | . . . . . . Machines Dismantled . | . . . . . . Machines Sabotaged . | . . . . . . Overloaded Fab Kills . | . . . . . . Hacking | -11 -10 -10 -10 -9 -8 --------- Run | Yrd Mat Min Exi Min Mat Machines Accessed 13 | . . . 5 . 8 Terminals 4 | . . . . . 4 Fabricators . | . . . . . . Repair Stations 2 | . . . . . 2 Recycling Units . | . . . . . . Scanalyzers 2 | . . . . . 2 Garrison Access . | . . . . . . Total Hacks 77 | . . . 50 . 27 Successful 68 | . . . 50 . 18 Failed 9 | . . . . . 9 Catastrophic . | . . . . . . Database Lockouts . | . . . . . . Manual 1 | . . . 1 . . Terminals 13 | . . . . . 13 Fabricators . | . . . . . . Repair Stations 6 | . . . . . 6 Recycling Units . | . . . . . . Scanalyzers 8 | . . . . . 8 Garrison Access . | . . . . . . Terminal Hacks 58 | . . . 50 . 8 Record 54 | . . . 49 . 5 Terminal Index 1 | . . . . . 1 Zone Layout 2 | . . . . . 2 Proto ID Catalog 1 | . . . 1 . . Fabricator Hacks . | . . . . . . Repair Station Hacks 4 | . . . . . 4 Scan Component 3 | . . . . . 3 Repair 1 | . . . . . 1 Recycling Unit Hacks . | . . . . . . Scanalyzer 6 | . . . . . 6 Insert Component 2 | . . . . . 2 Retrieve Study 4 | . . . . . 4 Garrison Access Hacks . | . . . . . . Unauthorized Hacks . | . . . . . . Terminals . | . . . . . . Fabricators . | . . . . . . Repair Stations . | . . . . . . Recycling Units . | . . . . . . Scanalyzers . | . . . . . . Garrison Access . | . . . . . . Data Cores Recovered . | . . . . . . Used . | . . . . . . Hacking Detections 6 | . . . . . 6 Full Trace Events 5 | . . . . . 5 Feedback Events . | . . . . . . Feedback Blocked . | . . . . . . Robot Schematics Acquired . | . . . . . . Robots Built . | . . . . . . Authchips . | . . . . . . Time . | . . . . . . Total Robot Build Rating . | . . . . . . Part Schematics Acquired . | . . . . . . Parts Built . | . . . . . . Authchips . | . . . . . . Time . | . . . . . . Total Part Build Rating . | . . . . . . Part Studies Acquired 3 | . . . . . 3 Parts Repaired 1 | . . . . . 1 Time 26 | . . . . . 26 Parts Recycled . | . . . . . . Recycled Matter . | . . . . . . Retrieved Matter . | . . . . . . Retrieved Components . | . . . . . . Parts Scanalyzed . | . . . . . . Part Schematics Acquired . | . . . . . . Parts Damaged . | . . . . . . Bothacking | -11 -10 -10 -10 -9 -8 ------------ Run | Yrd Mat Min Exi Min Mat Used RIF Installer . | . . . . . . Robots Hacked . | . . . . . . Non-combat . | . . . . . . Combat . | . . . . . . Robot Hacks Applied . | . . . . . . Relay Couplers Released . | . . . . . . Fabnet Peak Effective % . | . . . . . . Robots Rewired . | . . . . . . Allies Hacked . | . . . . . . Hacks Repelled . | . . . . . . Allies | -11 -10 -10 -10 -9 -8 -------- Run | Yrd Mat Min Exi Min Mat Total Allies 1 | . . . . . 1 Largest Group 1 | . . . . . 1 Highest-Rated Group 90 | . . . . . 90 Highest-Rated Ally 90 | . . . . . 90 Total Orders . | . . . . . . Ally Attacks 17 | . . . . . 17 Total Damage 613 | . . . . . 613 Kills 7 | . . . . . 7 Allies Corrupted . | . . . . . . Allies Melted . | . . . . . . Field Lobotomies 1 | . . . . . 1 Intel | -11 -10 -10 -10 -9 -8 ------- Run | Yrd Mat Min Exi Min Mat Active Infowar (turns) . | . . . . . . Robot Analysis Total . | . . . . . . Derelict Logs Recovered . | . . . . . . Drone Launches . | . . . . . . Drone Recoveries . | . . . . . . Exploration | -11 -10 -10 -10 -9 -8 ------------- Run | Yrd Mat Min Exi Min Mat Turns Passed 2504 | 61 92 94 464 205 1588 Spaces Moved 1559 | 46 51 78 381 144 859 Core 51 | 11 . . . . 40 Treads . | . . . . . . Legs 1184 | 35 51 78 381 144 495 Wheels 324 | . . . . . 324 Hover . | . . . . . . Flight . | . . . . . . Fastest Speed 50 | 50 120 120 120 120 50 Average Speed 123 | 103 120 120 120 120 127 Slowest Speed 400 | 120 120 120 120 120 400 Overloaded Moves . | . . . . . . Propulsion Burnouts . | . . . . . . Robots Hopped . | . . . . . . Potential Cave-ins . | . . . . . . Cave-ins Triggered . | . . . . . . Exploration Rate (%) 34 | 3 14 28 62 46 51 Regions Visited 5 Branch Regions 3 Pre-discovered Areas 1 | . . . 1 . . Known Exits Taken . | . . . . . . Unknown Exits Taken 5 | 1 1 1 1 1 . Scrap Searched . | . . . . . . Spaces Dug . | . . . . . . Terrain Destroyed 58 | . . . . . 58 Melee . | . . . . . . Projectile . | . . . . . . AOE 58 | . . . . . 58 Terrain Rammed . | . . . . . . Walls Destroyed . | . . . . . . Machines Disabled . | . . . . . . Actions | -11 -10 -10 -10 -9 -8 --------- Run | Yrd Mat Min Exi Min Mat Total 1958 | 56 65 78 387 157 1215 Wait 209 | . 2 1 . . 206 Move 1554 | 45 50 77 380 143 859 Hop . | . . . . . . Pick Up 13 | 3 . . 1 . 9 Fast Attach 37 | 7 2 . 1 1 26 Attach 14 | . . . 2 . 12 Detach 8 | 1 2 . 1 . 4 Swap 2 | . . . 2 . . Drop 26 | . . . . 1 25 Fire 86 | . 9 . . 12 65 Melee . | . . . . . . Ram 9 | . . . . . 9 Kick . | . . . . . . Crush . | . . . . . . Escape Stasis . | . . . . . . Rewire . | . . . . . . Trap . | . . . . . . Miscellaneous . | . . . . . . Route ------- -11/Scrapyard -10/Materials -10/Mines -10/Exiles -9/Mines -8/Materials (discovered 2 exits: [*Fac] / [*Sto]) History --------- Turn | Location | Event 9 | -11/Scrapyard | Discovered new exit (range 15) 62 | -11/Scrapyard | Entered Materials 136 | -10/Materials | Met 8R-AWN 149 | -10/Materials | Discovered new exit (range 5) 154 | -10/Materials | Entered Mines 155 | -10/Mines | Followed 8R-AWN into the Mines 243 | -10/Mines | Discovered new exit (range 5) 248 | -10/Mines | Entered Exiles 282 | -10/Exiles | Welcomed by 8R-AWN 307 | -10/Exiles | Met EX-HEX 310 | -10/Exiles | Build established: Mutant 342 | -10/Exiles | Met EX-BIN 359 | -10/Exiles | Aligned with FarCom system 360 | -10/Exiles | Given EX-Vault access code 555 | -10/Exiles | Opened EX-Vault 563 | -10/Exiles | Found Prototype Device 563 | -10/Exiles | Identified Skeleton Box 568 | -10/Exiles | Found Prototype Special Weapon 569 | -10/Exiles | Identified Field Lobotomy Kit 612 | -10/Exiles | Warned to stay clear of 0b10 Research branches 651 | -10/Exiles | Met EX-DEC 660 | -10/Exiles | Learned location of Zion (-7) 698 | -10/Exiles | Discovered new exit (range 14) 712 | -10/Exiles | Stole two prototypes: Skeleton Box, Field Lobotomy Kit 712 | -10/Exiles | Entered Mines 896 | -9/Mines | Discovered new exit (range 5) 917 | -9/Mines | Entered Materials 917 | -8/Materials | Evolved 4 slots: Utility x2, Weapon x2 1210 | -8/Materials | Build established: Skirmisher 1274 | -8/Materials | Discovered new exit (range 10) 1534 | -8/Materials | Discovered new exit (range 16) 1551 | -8/Materials | Assimilated H-61 Shepherd with FLK Orb 2101 | -8/Materials | Build established: Gunner 2260 | -8/Materials | Repaired Aluminum Leg+ 2430 | -8/Materials | Core integrity fell below 50% 2472 | -8/Materials | Core integrity fell below 20% 2505 | -8/Materials | Destroyed by G-47 Trooper with Particle Gun Last Messages --------------- 02479_ EMP Blaster broken. 02479_ Destabilizing: Short circuit. 02479_ Adv. Targeting Computer destroyed. 02480_ U-05 Engineer lays Concrete. 02481_ Slammed into G-47 Trooper. 02481_ U-05 Engineer lays Concrete. 02482_ System corrupted: Matter fused (-10). 02482_ EMP Blaster destroyed. 02482_ U-05 Engineer lays Concrete. 02484_ K-01 Serf destroyed. 02484_ K-01 Serf collects debris. 02484_ U-05 Engineer lays Concrete. 02486_ A-02 Transporter destroyed. 02486_ U-05 Engineer builds a Wall. 02489_ K-01 Serf collects debris. 02489_ Broken EMP Blaster destroyed. 02491_ U-05 Engineer lays Concrete. 02493_ K-01 Serf collects debris. 02493_ U-05 Engineer builds a Wall. 02505_ EMP Blaster destroyed. Map ----- +----------------------------------------------------+ | ?????########?????????????????????#"S !!# ""S | | ?????# ]] #?????????????????????#""" ! # "" "" | | ###### * ]] #?????????????????????# "" # "" | | ]!!# ] #?????????????????????# # "" | | !! # #?????????????????????#####+### | | !! # #????????###########??###% ######## | | =% # #????????# ####### | | !%####+###?######## / %[= | | %## ##### #[[! %#######% | | ####+## < # ! #???#=#[ ######## | | !%%% % # #???##### ###??????# | | ####### % # #???????# #????????# | | ??????# #### # ######### #?######## | | ?????#### ###??# # + #?# | | ?????#### #????# # %= # #?# = | | ????????# #????# ###+###### ### %= | | ????????# #????# ! =% %! #%= * | | ??? #????# w ! ! +! | | ??? #????# % = %%= # ! | | ??? #????# """ #####+## ##+#### | | ####???## +????# """"" #?# !"" # ## | | ????????# #????# """"" #?# %= "! ## | | ????????? ?????# g """"" #?# = ######### | | ????????? ?????# g """ ### + #???????? | | ????????? ???### g # #!!!#???????? | | ????????? @ # #!!!#???????? | | ????????? ????### ! # # ! #???????? | | ????????? ??????##+##### # ###???????? | | ??????????????????????## # #????????? | | ???????????????????????# ## # ###### #????????? | | ???????????????????????# ## # ##????????? | | ???????????????????????# %##### !%[ #?????????? | | ???????????????????????# %## # #?????????? | | ??????????????????????## g## ! ###?????????? | | ??????????????????????# # %= ##??????????? | | ??????????????????##### Y# #???????????? | | ??????????? g !] + ????? | | ????????????????####### # ! ####### #???? | | ??????????????????????# # ! #???????????? | | ??????????????????????####### *[! #???????????? | | ????????????????????????????# [%[ #???????????? | | ????????????????????????????#######/##???????????? | | ??????????????????????????????????? #????????????? | | ??????????????????????????????????? #????????????? | | ??????????????????????????????????? #????????????? | | ??????????????????????????????????? ????????????? | | #???????????????????????????????????#????????????? | | ?????????????????????????????????????????????????? | | ?????????????????????????????????????????????????? | | ?????????????????????????????????????????????????? | +----------------------------------------------------+ Best States ------------- Heat Dissipation 31 Energy Generation 15 Energy Capacity 265 Matter Stores 300 Matter Capacity 300 Sight Range 16 Terrain Scan Density 10 Armor Coverage 225 Evasion (%) 55 Targeting Accuracy 30 Trap Extractor Capacity 6 Item Schematics ----------------- None Robot Schematics ------------------ None Fabricated ------------ Nothing Repaired ---------- Aluminum Leg | 71% | -8/Materials Studied --------- Lgt. Nuclear Core | -8/Materials | Hacked Aluminum Leg | -8/Materials | Hacked EM Pulse Cannon | -8/Materials | Hacked Alien Tech Used ----------------- None Achievements -------------- Follow The Leader Sixth Sense Challenges ------------ None Game ------ Seed AssaultMetamassTube Manual? 0 Play Time 00:38:44 Cumulative 10.9 hours Start 2026.01.03 @ 21:55:19 End 2026.01.03 @ 22:31:52 Sessions 1 Manual Loads 0 Difficulty Rogue Special Mode None Game No. 26 Rogue 26 Adventurer 0 Explorer 0 Win Type - Total 0 Types 0/0/0/0/0/0/0/0/0/0 Lore% 9 Gallery% 11 Achievement% 13 Wizard Run 0 Options --------- Layout 1 ASCII 0 Keyboard 0 Movement Arrows Keybinds 0 Fullscreen 1 Font 16/SmallcapsGlow Map View 50x40 Zoom Use 0% Tactical HUD 1 Map Filters NONE Filters NONE Steam SD RUN: 41a3d977-5dbd-461c-a64a-8d3422e024d7